fUST/lending_fUST_20250110
["ID","MTS","AMOUNT","RATE_DAILY","PERIOD"]
[348350013,1736460641740,-579.43,0.00020273,3]
[348350014,1736460641749,-500.0,0.00020273,3]
[348350015,1736460641758,-500.0,0.00020273,3]
[348350016,1736460641767,-743.26,0.00020273,3]
[348350017,1736460641776,-10583.93,0.00020273,3]
[348350018,1736460641785,-500.0,0.00020273,3]
[348350019,1736460641796,-500.0,0.00020273,3]
[348350020,1736460641806,-500.0,0.00020516,2]
[348350021,1736460641815,-187.587171,0.00020521,2]
[348350022,1736460641824,-500.0,0.00020526,3]
[348350023,1736460641833,-500.0,0.00020527,3]
[348350024,1736460641843,-500.0,0.00020527,3]
[348350025,1736460641852,-500.0,0.00020527,3]
[348350026,1736460641861,-500.0,0.00020527,3]
[348350027,1736460641870,-500.0,0.00020527,3]
[348350028,1736460641879,-500.0,0.00020528,3]
[348350029,1736460641888,-500.0,0.00020528,3]
[348350030,1736460641897,-500.0,0.00020528,3]
[348350031,1736460641905,-500.0,0.00020528,3]
[348350032,1736460641914,-500.0,0.00020528,3]
[348350033,1736460641924,-500.0,0.00020528,3]
[348350034,1736460641934,-500.0,0.00020528,3]
[348350035,1736460641943,-423.15890282,0.00020528,3]
[348350036,1736460641954,-151.0,0.00020529,2]
[348350037,1736460641962,-1300.48,0.00020529,3]
[348350038,1736460641971,-877.98,0.00020529,3]
[348350039,1736460641980,-500.0,0.00020529,3]
[348350040,1736460641989,-500.0,0.00020529,3]
[348350041,1736460641998,-500.0,0.00020529,3]
[348350042,1736460642007,-500.0,0.00020529,3]
[348350043,1736460642017,-500.0,0.00020529,3]
[348350044,1736460642026,-500.0,0.00020529,3]
[348350045,1736460642035,-500.0,0.00020529,3]
[348350046,1736460642045,-545.56,0.00020529,3]
[348350047,1736460642053,-500.0,0.00020529,3]
[348350048,1736460642062,-1819.43,0.0002053,3]
[348350049,1736460642071,-500.0,0.0002053,3]
[348350050,1736460642081,-500.0,0.0002053,3]
[348350051,1736460642090,-500.0,0.00020531,2]
[348350052,1736460642099,-500.0,0.00020531,2]
[348350053,1736460642108,-500.0,0.00020531,2]
[348350054,1736460642118,-500.0,0.00020531,2]
[348350055,1736460642127,-500.0,0.00020531,2]
[348350056,1736460642137,-454.575125,0.00020531,2]
[348350057,1736460642146,-500.0,0.00020531,3]
[348350058,1736460642155,-1671.02,0.00020534,3]
[348350059,1736460642165,-505.6082234,0.00020547,3]
[348350060,1736460642174,-496.03,0.00020547,3]
[348350061,1736460642183,-500.0,0.00020547,3]
[348350062,1736460642192,-257.26,0.00020547,3]
[348350063,1736460642202,-500.0,0.00020547,3]
[348350064,1736460642211,-606.3,0.00020547,3]
[348350066,1736460642221,-500.0,0.00020547,3]
[348350068,1736460642230,-500.0,0.00020547,3]
[348350070,1736460642239,-500.0,0.00020547,3]
[348350072,1736460642249,-835.14,0.00020547,2]
[348350073,1736460642258,-500.0,0.00020547,3]
[348350074,1736460642267,-1586.38,0.00020547,3]
[348350075,1736460642276,-500.0,0.00020547,3]
[348350076,1736460642285,-500.0,0.00020547,3]
[348350077,1736460642294,-533.15,0.00020547,3]
[348350078,1736460642303,-500.0,0.00020547,3]
[348350079,1736460642312,-700.72,0.00020547,3]
[348350080,1736460642321,-500.0,0.00020547,3]
[348350081,1736460642331,-509.51,0.00020547,3]
[348350083,1736460642340,-743.26,0.00020547,3]
[348350084,1736460642350,-10583.93,0.00020547,3]
[348350085,1736460642359,-242.46,0.00020547,3]
[348350087,1736460642368,-500.0,0.00020547,3]
[348350089,1736460642377,-500.0,0.000208,3]
[348350091,1736460642387,-500.0,0.00020801,3]
[348350093,1736460642396,-500.0,0.00020801,3]
[348350096,1736460642405,-500.0,0.00020801,3]
[348350098,1736460642414,-500.0,0.00020801,3]
[348350100,1736460642424,-500.0,0.00020801,3]
[348350102,1736460642433,-500.0,0.00020802,3]
[348350104,1736460642442,-500.0,0.00020802,3]
[348350106,1736460642452,-500.0,0.00020802,3]
[348350108,1736460642461,-500.0,0.00020802,3]
[348350110,1736460642470,-500.0,0.00020802,3]
[348350112,1736460642479,-336.21679325,0.00020802,3]
[348350115,1736460642490,-1300.48,0.00020803,3]
[348350118,1736460642504,-877.98,0.00020803,3]
[348350121,1736460642515,-500.0,0.00020803,3]
[348350123,1736460642524,-500.0,0.00020803,3]
[348350125,1736460642534,-500.0,0.00020803,3]
[348350127,1736460642543,-500.0,0.00020803,3]
[348350129,1736460642553,-500.0,0.00020803,3]
[348350131,1736460642562,-500.0,0.00020803,3]
[348350133,1736460642572,-500.0,0.00020803,3]
[348350135,1736460642581,-1819.43,0.00020804,3]
[348350137,1736460642591,-500.0,0.00020804,3]
[348350139,1736460642600,-573.44016869,0.00020805,3]
[348350141,1736460642610,-164.490884,0.00020807,2]
[348350143,1736460642619,-1671.02,0.00020808,3]
[348350145,1736460642628,-500.0,0.00020821,3]
[348350147,1736460642638,-500.0,0.00020821,3]
[348350149,1736460642647,-500.0,0.00020821,3]
[348350151,1736460642656,-500.0,0.00020821,3]
[348350153,1736460642665,-835.14,0.00020821,2]
[348350155,1736460642674,-500.0,0.00020821,3]
[348350157,1736460642683,-1586.38,0.00020821,3]
[348350159,1736460642692,-500.0,0.00020821,3]
[348350160,1736460642705,-500.0,0.00020821,3]
[348350161,1736460642714,-533.15,0.00020821,3]
[348350162,1736460642723,-356.04,0.00020821,3]
[348350163,1736460642733,-700.72,0.00020821,3]
[348350164,1736460642742,-500.0,0.00020821,3]
[348350165,1736460642751,-743.26,0.00020821,3]
[348350166,1736460642760,-10583.93,0.00020821,3]
[348350167,1736460642769,-500.0,0.00020821,3]
[348350168,1736460642779,-420.0,0.00020899,2]
[348350169,1736460642788,-673.47649848,0.00021,3]
[348350170,1736460642799,-516.27,0.00021074,3]
[348350171,1736460642808,-1300.48,0.00021077,3]
[348350172,1736460642817,-877.98,0.00021077,3]
[348350173,1736460642827,-500.0,0.00021077,3]
[348350174,1736460642837,-500.0,0.00021077,3]
[348350175,1736460642846,-500.0,0.00021077,3]
[348350176,1736460642855,-1819.43,0.00021078,3]
[348350177,1736460642864,-500.0,0.00021078,3]
[348350178,1736460642873,-1671.02,0.00021082,3]
[348350179,1736460642883,-500.0,0.00021095,3]
[348350180,1736460642892,-268.82252197,0.00021095,3]
[348350181,1736460642902,-500.0,0.00021095,3]
[348350182,1736460642911,-500.0,0.00021095,3]
[348350183,1736460642920,-835.14,0.00021095,2]
[348350184,1736460642930,-500.0,0.00021095,3]
[348350185,1736460642939,-1586.38,0.00021095,3]
[348350186,1736460642948,-500.0,0.00021095,3]
[348350187,1736460642961,-500.0,0.00021095,3]
[348350188,1736460642970,-533.15,0.00021095,3]
[348350189,1736460642979,-700.72,0.00021095,3]
[348350190,1736460642988,-500.0,0.00021095,3]
[348350191,1736460642998,-743.26,0.00021095,3]
[348350192,1736460643007,-10583.93,0.00021095,3]
[348350193,1736460643016,-500.0,0.00021095,3]
[348350194,1736460643025,-153.0,0.00021242,2]
[348350195,1736460643036,-153.0,0.00021242,2]
[348350197,1736460643045,-1326.03358504,0.000213,2]
[348350210,1736460643283,-139.7658,0.000213,2]
[348350211,1736460643294,-420.87043536,0.000213,2]
[348350212,1736460643306,-1000.0,0.000213,2]
[348350213,1736460643375,-165.5111608,0.00020473,2]
[348350214,1736460643385,-113.3301796,0.000213,2]
[348350215,1736460643394,-153.0,0.00021303,2]
[348350216,1736460643403,-153.0,0.00021303,2]
[348350217,1736460643412,-153.0,0.00021303,2]
[348350218,1736460643421,-153.0,0.00021303,2]
[348350219,1736460643430,-153.0,0.00021303,2]
[348350220,1736460643439,-153.0,0.00021303,2]
[348350221,1736460643449,-153.0,0.00021303,2]
[348350222,1736460643459,-3000.0,0.0002131,2]
[348350223,1736460643468,-3000.0,0.0002132,2]
[348350224,1736460643477,-3000.0,0.0002133,2]
[348350225,1736460643487,-3000.0,0.0002134,2]
[348350226,1736460643499,-1180.65484588,0.0002135,2]
[348350227,1736460643510,-579.12956464,0.0002135,2]
[348350257,1736460645736,-1240.21558948,0.0002135,2]
[348350258,1736460645746,-1300.48,0.00021351,3]
[348350260,1736460645756,-877.98,0.00021351,3]
[348350261,1736460645766,-495.88394317,0.00021351,3]
[348350265,1736460697412,164.653734,0.00013973,2]
[348350286,1736461629129,-1088.60205425,0.00018108,2]
[348350287,1736461633144,-3458.5167586,0.00018108,2]
[348350288,1736461642093,-635.00277752,0.00018108,2]
[348350289,1736461746106,-3337.11387122,0.00018108,2]
[348350290,1736461770110,-80.28913921,0.00018108,2]
[348350291,1736461770132,-148.44286079,0.000188,2]
[348350887,1736461838158,-28.40424409,0.000188,2]
[348350889,1736461838168,-1619.23746835,0.000189,2]
[348350891,1736461838177,-300.0,0.00018998,2]
[348350893,1736461838186,-1857.0,0.00018998,2]
[348350896,1736461838195,-464.20474348,0.00018999,2]
[348350899,1736461838205,-500.0,0.00018999,2]
[348350903,1736461838215,-300.14790039,0.00018999,2]
[348350905,1736461838224,-227.17104749,0.00018999,2]
[348350908,1736461838234,-266.20364078,0.00018999,2]
[348350910,1736461838243,-500.0,0.00018999,2]
[348350912,1736461838253,-435.72514006,0.00018999,2]
[348350914,1736461838262,-500.0,0.00018999,2]
[348350915,1736461838272,-546.74835334,0.00018999,2]
[348350916,1736461838282,-500.0,0.00018999,2]
[348350917,1736461838291,-308.13161401,0.00018999,2]
[348350919,1736461838300,-11270.88013846,0.00019,2]
[348351307,1736461843055,-471.86481372,0.00019,2]
[348351604,1736461846064,-500.0,0.00018999,2]
[348351606,1736461846073,-500.0,0.00018999,2]
[348351608,1736461846083,-443.53053565,0.00018999,2]
[348351610,1736461846092,-500.0,0.00018999,2]
[348351612,1736461846102,-76257.25504782,0.00019,2]
[348351614,1736461846111,-302.51602579,0.00019,2]
[348351616,1736461846120,-429.38197753,0.00019077,2]
[348351618,1736461846130,-163.14484928,0.00019177,2]
[348351620,1736461846139,-500.0,0.00019178,2]
[348351622,1736461846148,-500.0,0.00019178,2]
[348351624,1736461846158,-500.0,0.00019178,2]
[348351626,1736461846168,-353.38,0.00019178,2]
[348351628,1736461846177,-500.0,0.00019178,3]
[348351630,1736461846187,-280.72031512,0.00019178,3]
[348351632,1736461846196,-500.0,0.00019178,2]
[348351634,1736461846205,-500.0,0.00019178,2]
[348351636,1736461846216,-500.0,0.00019178,2]
[348351638,1736461846225,-500.0,0.00019178,2]
[348351640,1736461846234,-1078.42,0.00019178,2]
[348351642,1736461846243,-500.0,0.00019178,2]
[348351644,1736461846253,-188.0,0.00019178,2]
[348351646,1736461846262,-500.0,0.00019178,2]
[348351648,1736461846272,-500.0,0.00019178,2]
[348351650,1736461846281,-500.0,0.00019178,2]
[348351652,1736461846290,-500.0,0.00019178,2]
[348351654,1736461846300,-500.0,0.00019178,2]
[348351656,1736461846309,-7169.81,0.00019178,2]
[348351658,1736461846319,-500.0,0.00019178,2]
[348351660,1736461846328,-500.0,0.00019178,3]
[348351662,1736461846338,-261.11481262,0.00019178,2]
[348351664,1736461846347,-500.0,0.00019178,2]
[348351666,1736461846357,-155.23,0.00019178,2]
[348351668,1736461846366,-164.136265,0.00019178,2]
[348351670,1736461846375,-302.51602579,0.0001919,2]
[348351672,1736461846385,-302.51602579,0.0001938,2]
[348351674,1736461846394,-166.964,0.00019451,2]
[348351676,1736461846404,-183.08676762,0.00019451,2]
[348351678,1736461846414,-423.53846742,0.00019451,2]
[348351681,1736461846423,-500.0,0.00019451,3]
[348351682,1736461846432,-200.58147823,0.00019452,3]
[348351685,1736461846442,-607.25,0.00019452,3]
[348351687,1736461846451,-303.41776431,0.00019452,3]
[348351689,1736461846461,-500.0,0.00019452,3]
[348351691,1736461846472,-500.0,0.00019452,3]
[348351693,1736461846483,-500.0,0.00019452,3]
[348351695,1736461846492,-500.0,0.00019452,3]
[348351697,1736461846502,-1078.42,0.00019452,3]
[348351699,1736461846511,-500.0,0.00019452,3]
[348351701,1736461846520,-500.0,0.00019452,3]
[348351703,1736461846530,-500.0,0.00019452,3]
[348351705,1736461846540,-500.0,0.00019452,3]
[348351707,1736461846549,-500.0,0.00019452,3]
[348351709,1736461846559,-500.0,0.00019452,3]
[348351711,1736461846568,-7169.81,0.00019452,3]
[348351713,1736461846577,-500.0,0.00019452,3]
[348351715,1736461846587,-334.3683827,0.0001957,2]
[348351717,1736461846595,-429.38197746,0.00019674,2]
[348351719,1736461846604,-500.0,0.00019726,3]
[348351721,1736461846613,-500.0,0.00019726,3]
[348351723,1736461846623,-500.0,0.00019726,3]
[348351725,1736461846632,-500.0,0.00019726,3]
[348351727,1736461846641,-1078.42,0.00019726,3]
[348351729,1736461846650,-500.0,0.00019726,3]
[348351731,1736461846659,-500.0,0.00019726,3]
[348351733,1736461846668,-500.0,0.00019726,3]
[348351735,1736461846677,-500.0,0.00019726,3]
[348351737,1736461846686,-500.0,0.00019726,3]
[348351739,1736461846695,-500.0,0.00019726,3]
[348351741,1736461846704,-7169.81,0.00019726,3]
[348351743,1736461846714,-500.0,0.00019726,3]
[348351745,1736461846723,-500.0,0.00019909,3]
[348351747,1736461846733,-624.01795158,0.0001999,3]
[348351749,1736461846742,-500.0,0.0002,3]
[348351751,1736461846751,-500.0,0.0002,3]
[348351753,1736461846761,-498.68941813,0.0002,3]
[348351755,1736461846770,-500.0,0.0002,3]
[348351757,1736461846779,-1078.42,0.0002,3]
[348351759,1736461846788,-571.35,0.0002,3]
[348351761,1736461846797,-500.0,0.0002,3]
[348351763,1736461846806,-500.0,0.0002,3]
[348351765,1736461846816,-500.0,0.0002,3]
[348351767,1736461846825,-500.0,0.0002,3]
[348351769,1736461846835,-500.0,0.0002,3]
[348351771,1736461846844,-7169.81,0.0002,3]
[348351773,1736461846853,-574.2,0.0002,3]
[348351775,1736461846862,-1050.38,0.00020253,3]
[348351777,1736461846872,-736.73,0.00020253,3]
[348351779,1736461846881,-500.0,0.00020253,3]
[348351781,1736461846893,-500.0,0.00020253,3]
[348351783,1736461846902,-1541.94,0.00020255,3]
[348351785,1736461846911,-500.0,0.00020255,3]
[348351787,1736461846922,-500.09,0.00020256,3]
[348351789,1736461846931,-500.0,0.00020256,3]
[348351791,1736461846940,-2096.48,0.00020257,3]
[348351793,1736461846950,-429.38197746,0.00020271,2]
[348351796,1736461846960,-500.0,0.00020273,3]
[348351797,1736461846971,-500.0,0.00020273,3]
[348351800,1736461846980,-500.0,0.00020273,3]
[348351801,1736461846990,-1078.42,0.00020273,3]
[348351803,1736461847000,-500.0,0.00020273,3]
[348351806,1736461847009,-500.0,0.00020273,3]
[348351808,1736461847018,-500.0,0.00020273,3]
[348351810,1736461847028,-500.0,0.00020273,3]
[348351812,1736461847037,-500.0,0.00020273,3]
[348351814,1736461847046,-7169.81,0.00020273,3]
[348351816,1736461847055,-502.6387302,0.00020383,2]
[348351818,1736461847064,-370.35301337,0.00020416,2]
[348351820,1736461847074,-500.81279971,0.00020416,2]
[348351822,1736461847083,-1050.38,0.00020527,3]
[348351824,1736461847092,-736.73,0.00020527,3]
[348351826,1736461847101,-636.00605683,0.00020527,3]
[348351828,1736461847111,-500.0,0.00020527,3]
[348351830,1736461847120,-1541.94,0.00020529,3]
[348351832,1736461847129,-500.0,0.00020529,3]
[348351834,1736461847138,-500.09,0.0002053,3]
[348351836,1736461847147,-500.0,0.0002053,3]
[348351838,1736461847156,-2096.48,0.00020531,3]
[348351840,1736461847166,-500.0,0.00020547,3]
[348351842,1736461847176,-500.0,0.00020547,3]
[348351844,1736461847186,-500.0,0.00020547,3]
[348351846,1736461847195,-1078.42,0.00020547,3]
[348351848,1736461847204,-500.0,0.00020547,3]
[348351850,1736461847214,-500.0,0.00020547,3]
[348351852,1736461847223,-500.0,0.00020547,3]
[348351853,1736461847232,-500.0,0.00020547,3]
[348351855,1736461847241,-500.0,0.00020547,3]
[348351858,1736461847250,-7169.81,0.00020547,3]
[348351860,1736461847259,-420.0,0.00020708,2]
[348351862,1736461847269,-1050.38,0.00020801,3]
[348351864,1736461847279,-736.73,0.00020801,3]
[348351866,1736461847288,-500.0,0.00020801,3]
[348351867,1736461847297,-1541.94,0.00020803,3]
[348351870,1736461847307,-500.0,0.00020803,3]
[348351872,1736461847316,-2096.48,0.00020805,3]
[348351873,1736461847325,-164.653734,0.00020807,2]
[348351876,1736461847335,-500.09,0.0002082,3]
[348351878,1736461847345,-500.0,0.0002082,3]
[348351880,1736461847354,-500.0,0.00020821,3]
[348351882,1736461847364,-500.0,0.00020821,3]
[348351884,1736461847373,-500.0,0.00020821,3]
[348351885,1736461847382,-1078.42,0.00020821,3]
[348351887,1736461847392,-500.0,0.00020821,3]
[348351889,1736461847401,-500.0,0.00020821,3]
[348351891,1736461847411,-500.0,0.00020821,3]
[348351893,1736461847420,-500.0,0.00020821,3]
[348351895,1736461847429,-500.0,0.00020821,3]
[348351897,1736461847438,-7169.81,0.00020821,3]
[348351899,1736461847447,-429.38197746,0.00020868,2]
[348351901,1736461847457,-10592.16776636,0.00021038,2]
[348351903,1736461847467,-1050.38,0.00021075,3]
[348351905,1736461847476,-736.73,0.00021075,3]
[348351907,1736461847485,-1541.94,0.00021077,3]
[348351909,1736461847494,-500.0,0.00021077,3]
[348351911,1736461847503,-2096.48,0.00021079,3]
[348351913,1736461847511,-153.0,0.00021085,2]
[348351915,1736461847520,-153.0,0.00021085,2]
[348351917,1736461847530,-153.0,0.00021085,2]
[348351919,1736461847539,-153.0,0.00021085,2]
[348351921,1736461847548,-153.0,0.00021085,2]
[348351923,1736461847557,-153.0,0.00021085,2]
[348351925,1736461847566,-153.0,0.00021085,2]
[348351927,1736461847575,-153.0,0.00021085,2]
[348351929,1736461847585,-153.0,0.00021085,2]
[348351931,1736461847594,-153.0,0.00021085,2]
[348351933,1736461847603,-153.0,0.00021085,2]
[348351935,1736461847612,-153.0,0.00021085,2]
[348351937,1736461847622,-153.0,0.00021085,2]
[348351939,1736461847631,-153.0,0.00021085,2]
[348351941,1736461847640,-153.0,0.00021085,2]
[348351943,1736461847650,-153.0,0.00021085,2]
[348351945,1736461847659,-153.0,0.00021085,2]
[348351947,1736461847668,-153.0,0.00021085,2]
[348351949,1736461847677,-153.0,0.00021085,2]
[348351951,1736461847686,-153.0,0.00021085,2]
[348351953,1736461847695,-153.0,0.00021085,2]
[348351955,1736461847704,-153.0,0.00021085,2]
[348351957,1736461847713,-153.0,0.00021085,2]
[348351959,1736461847722,-153.0,0.00021085,2]
[348351961,1736461847731,-500.09,0.00021094,3]
[348351963,1736461847740,-156.36,0.00021095,3]
[348351965,1736461847750,-500.0,0.00021095,3]
[348351967,1736461847759,-192.09,0.00021095,3]
[348351969,1736461847768,-1078.42,0.00021095,3]
[348351971,1736461847777,-500.0,0.00021095,3]
[348351973,1736461847786,-500.0,0.00021095,3]
[348351975,1736461847795,-500.0,0.00021095,3]
[348351977,1736461847804,-500.0,0.00021095,3]
[348351979,1736461847813,-500.0,0.00021095,3]
[348351981,1736461847822,-7169.81,0.00021095,3]
[348351983,1736461847831,-2635.26026768,0.000213,4]
[348351985,1736461847841,-1050.38,0.00021349,3]
[348351987,1736461847850,-736.73,0.00021349,3]
[348351989,1736461847859,-1541.94,0.00021351,3]
[348351991,1736461847868,-500.0,0.00021351,3]
[348351993,1736461847878,-500.09,0.00021351,3]
[348351995,1736461847888,-151.0,0.00021352,2]
[348351997,1736461847896,-151.0,0.00021352,2]
[348351999,1736461847906,-3000.0,0.0002136,2]
[348352001,1736461847915,-500.0,0.00021369,3]
[348352002,1736461847924,-1078.42,0.00021369,3]
[348352004,1736461847934,-500.0,0.00021369,3]
[348352014,1736461848017,-500.0,0.00021369,3]
[348352016,1736461848027,-500.0,0.00021369,3]
[348352018,1736461848036,-500.0,0.00021369,3]
[348352020,1736461848045,-500.0,0.00021369,3]
[348352022,1736461848055,-7169.81,0.00021369,3]
[348352024,1736461848065,-3000.0,0.0002137,2]
[348352026,1736461848074,-500.09,0.00021379,3]
[348352028,1736461848083,-3000.0,0.0002138,2]
[348352030,1736461848092,-3000.0,0.0002139,2]
[348352032,1736461848101,-3000.0,0.000214,2]
[348352034,1736461848110,-3000.0,0.0002141,2]
[348352036,1736461848119,-3000.0,0.0002142,2]
[348352038,1736461848128,-3150.0,0.0002143,2]
[348352040,1736461848138,-352.3939785,0.00021452,2]
[348352042,1736461848147,-429.38197746,0.00021466,2]
[348352044,1736461848156,-786.87,0.0002147,2]
[348352046,1736461848165,-500.09,0.00021582,3]
[348352048,1736461848175,-3629.0,0.000216,4]
[348352050,1736461848184,-1050.38,0.00021623,3]
[348352052,1736461848193,-736.73,0.00021623,3]
[348352054,1736461848202,-1541.94,0.00021625,3]
[348352056,1736461848212,-500.0,0.00021625,3]
[348352058,1736461848222,-500.09,0.00021642,3]
[348352060,1736461848231,-500.0,0.00021643,3]
[348352062,1736461848241,-1078.42,0.00021643,3]
[348352064,1736461848251,-500.0,0.00021643,3]
[348352065,1736461848260,-500.0,0.00021643,3]
[348352067,1736461848270,-500.0,0.00021643,3]
[348352069,1736461848280,-520.76,0.00021643,3]
[348352071,1736461848289,-500.0,0.00021643,3]
[348352073,1736461848298,-7169.81,0.00021643,3]
[348352075,1736461848308,-218.8526942,0.00021726,2]
[348352077,1736461848318,-247.8900876,0.00021726,2]
[348352079,1736461848328,-151.0,0.000218,3]
[348352081,1736461848338,-1050.38,0.00021897,3]
[348352083,1736461848348,-736.73,0.00021897,3]
[348352085,1736461848358,-1541.94,0.00021899,3]
[348352087,1736461848368,-500.0,0.00021899,3]
[348352089,1736461848377,-14549.99199627,0.000219,2]
[348352091,1736461848386,-14549.99199625,0.000219,2]
[348352093,1736461848396,-14549.99199625,0.000219,2]
[348352095,1736461848406,-14549.99199625,0.000219,2]
[348352097,1736461848416,-151.0,0.000219,2]
[348352099,1736461848425,-212.1949,0.000219,2]
[348352101,1736461848434,-151.0,0.000219,2]
[348352102,1736461848444,-151.0,0.000219,2]
[348352104,1736461848454,-151.0,0.000219,2]
[348352106,1736461848464,-151.86227,0.000219,2]
[348352108,1736461848474,-500.09,0.00021916,3]
[348352110,1736461848483,-151.0,0.00021917,2]
[348352112,1736461848493,-500.9,0.00021917,3]
[348352114,1736461848502,-1078.42,0.00021917,3]
[348352116,1736461848511,-151.0,0.00021917,2]
[348352118,1736461848521,-500.0,0.00021917,3]
[348352120,1736461848530,-500.0,0.00021917,3]
[348352122,1736461848539,-500.0,0.00021917,3]
[348352124,1736461848549,-500.0,0.00021917,3]
[348352126,1736461848558,-7169.81,0.00021917,3]
[348352128,1736461848567,-465.25792806,0.00021967,2]
[348352130,1736461848577,-429.38197746,0.00022063,2]
[348352132,1736461848586,-151.0,0.000221,8]
[348352134,1736461848595,-151.0,0.0002217,7]
[348352136,1736461848605,-1050.38,0.00022171,3]
[348352138,1736461848614,-736.73,0.00022171,3]
[348352140,1736461848624,-1541.94,0.00022173,3]
[348352142,1736461848633,-589.36,0.00022173,3]
[348352143,1736461848642,-1078.42,0.00022191,3]
[348352145,1736461848651,-500.0,0.00022191,3]
[348352147,1736461848660,-500.0,0.00022191,3]
[348352149,1736461848669,-500.0,0.00022191,3]
[348352151,1736461848679,-500.0,0.00022191,3]
[348352153,1736461848688,-7169.81,0.00022191,3]
[348352155,1736461848697,-500.09,0.00022191,3]
[348352157,1736461848706,-983.8003539,0.00022275,2]
[348352159,1736461848715,-151.0,0.000223,6]
[348352161,1736461848725,-151.0,0.000224,9]
[348352163,1736461848735,-600.0,0.00022403,2]
[348352165,1736461848745,-1050.38,0.00022445,3]
[348352167,1736461848755,-736.73,0.00022445,3]
[348352168,1736461848764,-1541.94,0.00022447,3]
[348352170,1736461848773,-1078.42,0.00022465,3]
[348352172,1736461848782,-500.0,0.00022465,3]
[348352174,1736461848791,-500.0,0.00022465,3]
[348352176,1736461848800,-500.0,0.00022465,3]
[348352178,1736461848810,-500.0,0.00022465,3]
[348352180,1736461848819,-7169.81,0.00022465,3]
[348352182,1736461848829,-2500.0,0.00022466,2]
[348352184,1736461848838,-160.96411864,0.00022499,2]
[348352186,1736461848847,-2000.0,0.000225,7]
[348352188,1736461848857,-153.8047844,0.00022548,2]
[348352190,1736461848866,-568.6059082,0.00022548,2]
[348352192,1736461848876,-153.8047844,0.00022548,2]
[348352194,1736461848887,-587.0,0.00022572,2]
[348352196,1736461848897,-160.44682479,0.00022599,2]
[348352197,1736461848906,-151.0,0.000226,7]
[348352199,1736461848915,-151.0,0.000226,6]
[348352201,1736461848925,-619.0,0.000226,2]
[348352202,1736461848934,-11779.42661415,0.000226,3]
[348352203,1736461848948,-935.07553636,0.00022636,2]
[348352204,1736461848961,-429.38197746,0.0002266,2]
[348352205,1736461848976,-151.0,0.000227,10]
[348352206,1736461848988,-151.0,0.000227,9]
[348352207,1736461849001,-179.3,0.00022716,2]
[348352208,1736461849012,-170.0,0.00022716,2]
[348352209,1736461849023,-170.0,0.00022716,2]
[348352210,1736461849035,-170.0,0.00022716,2]
[348352211,1736461849048,-1050.38,0.00022719,3]
[348352212,1736461849059,-736.73,0.00022719,3]
[348352213,1736461849071,-1541.94,0.00022721,3]
[348352214,1736461849083,-151.0,0.00022739,7]
[348352215,1736461849095,-151.0,0.00022739,7]
[348352216,1736461849107,-1078.42,0.00022739,3]
[348352217,1736461849119,-151.0,0.00022739,7]